fUSD/lending_fUSD_20240628
["ID","MTS","AMOUNT","RATE_DAILY","PERIOD"]
[330568072,1719580243263,-500.0,0.00021917,3]
[330568073,1719580243273,-500.0,0.00021917,3]
[330568074,1719580243282,-500.0,0.00021917,3]
[330568075,1719580243291,-763.32,0.00021917,3]
[330568076,1719580243301,-1093.98,0.00021917,3]
[330568077,1719580243310,-500.0,0.00021917,3]
[330568078,1719580243319,-500.0,0.00021917,3]
[330568079,1719580243328,-500.0,0.00021917,3]
[330568080,1719580243337,-500.0,0.00021917,3]
[330568081,1719580243347,-500.0,0.00021917,3]
[330568082,1719580243356,-1035.61,0.00021917,3]
[330568083,1719580243365,-759.39,0.00021917,3]
[330568085,1719580243374,-500.0,0.00021917,3]
[330568087,1719580243383,-500.0,0.00021917,3]
[330568088,1719580243393,-1161.23,0.00021917,3]
[330568089,1719580243402,-680.86,0.00021917,3]
[330568090,1719580243411,-1278.34,0.00021917,3]
[330568092,1719580243421,-1435.55,0.00021917,3]
[330568094,1719580243430,-500.0,0.00021917,3]
[330568096,1719580243439,-1074.81,0.00021917,3]
[330568097,1719580243448,-668.91,0.00021917,3]
[330568098,1719580243458,-913.07,0.00021917,3]
[330568099,1719580243467,-1143.98,0.00021917,3]
[330568100,1719580243477,-500.0,0.00021917,3]
[330568101,1719580243486,-1506.1,0.00021917,3]
[330568102,1719580243496,-1291.82,0.00021917,3]
[330568103,1719580243505,-500.0,0.00021917,3]
[330568104,1719580243514,-500.0,0.00021917,3]
[330568105,1719580243523,-500.0,0.00021917,3]
[330568106,1719580243532,-500.0,0.00021917,3]
[330568107,1719580243541,-500.0,0.00021917,3]
[330568108,1719580243550,-500.0,0.00021917,3]
[330568109,1719580243559,-500.0,0.00021917,3]
[330568110,1719580243568,-1144.34,0.00021917,3]
[330568111,1719580243578,-500.0,0.00021917,3]
[330568112,1719580243587,-500.0,0.00021917,3]
[330568113,1719580243597,-843.85,0.00021917,3]
[330568114,1719580243606,-536.35,0.00021917,3]
[330568115,1719580243616,-1194.79,0.00021917,3]
[330568116,1719580243626,-1299.87,0.00021917,3]
[330568117,1719580243635,-519.71,0.00021917,3]
[330568118,1719580243645,-500.0,0.00021917,3]
[330568119,1719580243655,-631.67,0.00021917,3]
[330568120,1719580243664,-500.0,0.00021917,3]
[330568121,1719580243674,-500.0,0.00021917,3]
[330568122,1719580243683,-979.91,0.00021917,3]
[330568123,1719580243693,-586.73,0.00021917,3]
[330568124,1719580243703,-151.95808178,0.00021917,3]
[330568125,1719580243714,-1246.01,0.00021917,3]
[330568126,1719580243725,-393.91529688,0.00021917,3]
[330568127,1719580243735,-984.47,0.00021917,3]
[330568128,1719580243745,-729.46,0.00021917,3]
[330568129,1719580243754,-850.48,0.00021917,3]
[330568130,1719580243763,-500.0,0.00021917,3]
[330568131,1719580243772,-500.0,0.00021917,3]
[330568132,1719580243781,-691.15,0.00021917,3]
[330568133,1719580243791,-500.0,0.00021917,3]
[330568134,1719580243800,-500.0,0.00021917,3]
[330568135,1719580243809,-3480.77,0.00021917,3]
[330568136,1719580243818,-1241.9,0.00021917,3]
[330568137,1719580243827,-500.0,0.00021917,3]
[330568138,1719580243836,-1496.2,0.00021917,3]
[330568139,1719580243845,-500.0,0.00021917,3]
[330568140,1719580243854,-1132.6,0.00021917,3]
[330568141,1719580243863,-1468.23,0.00021917,3]
[330568142,1719580243872,-635.93069162,0.00021917,3]
[330568143,1719580243882,-1044.53,0.00021917,3]
[330568144,1719580243891,-743.19,0.00021917,3]
[330568145,1719580243900,-548.63,0.00021917,3]
[330568146,1719580243909,-500.0,0.00021917,3]
[330568147,1719580243918,-500.0,0.00021917,3]
[330568148,1719580243927,-1223.72,0.00021917,3]
[330568149,1719580243936,-1362.61,0.00021917,3]
[330568150,1719580243945,-500.0,0.00021917,3]
[330568151,1719580243954,-672.01,0.00021917,3]
[330568152,1719580243963,-554.03127324,0.00021917,3]
[330568153,1719580243972,-500.0,0.00021917,3]
[330568154,1719580243981,-500.0,0.00021917,3]
[330568155,1719580243990,-500.0,0.00021917,3]
[330568156,1719580244001,-500.0,0.00021917,3]
[330568157,1719580244010,-500.0,0.00021917,3]
[330568158,1719580244020,-500.0,0.00021917,3]
[330568159,1719580244029,-500.0,0.00021917,3]
[330568160,1719580244042,-500.0,0.00021917,3]
[330568161,1719580244052,-3259.21,0.00021917,3]
[330568162,1719580244061,-500.0,0.00021917,3]
[330568163,1719580244071,-500.0,0.00021917,3]
[330568164,1719580244082,-500.0,0.00021917,3]
[330568165,1719580244091,-930.67,0.00021917,3]
[330568166,1719580244101,-500.0,0.00021917,3]
[330568167,1719580244111,-500.0,0.00021917,3]
[330568168,1719580244123,-500.0,0.00021917,3]
[330568169,1719580244133,-572.77,0.00021917,3]
[330568170,1719580244143,-500.0,0.00021917,3]
[330568171,1719580244153,-500.0,0.00021917,3]
[330568172,1719580244163,-1324.9,0.00021917,3]
[330568173,1719580244172,-2000.91,0.00021917,3]
[330568174,1719580244181,-695.29,0.00021917,3]
[330568175,1719580244190,-500.0,0.00021917,3]
[330568176,1719580244200,-938.73,0.00021917,3]
[330568177,1719580244209,-500.0,0.00021917,3]
[330568178,1719580244219,-500.0,0.00021917,3]
[330568179,1719580244228,-500.0,0.00021917,3]
[330568180,1719580244237,-500.0,0.00021917,3]
[330568181,1719580244248,-500.0,0.00021917,3]
[330568182,1719580244258,-502.60486628,0.00021917,3]
[330568183,1719580244267,-500.0,0.00021917,3]
[330568184,1719580244280,-200.0,0.00021917,7]
[330568185,1719580244290,-711.72,0.00021917,3]
[330568186,1719580244300,-500.0,0.00021917,3]
[330568187,1719580244309,-1248.05,0.00021917,3]
[330568188,1719580244318,-628.23693343,0.00021917,3]
[330568189,1719580244328,-1297.88,0.00021917,3]
[330568190,1719580244337,-733.52,0.00021917,3]
[330568191,1719580244346,-453.01513656,0.00021917,2]
[330568192,1719580244355,-666.85,0.00021917,3]
[330568193,1719580244365,-500.0,0.00021917,3]
[330568194,1719580244375,-937.58,0.00021917,3]
[330568195,1719580244385,-962.43,0.00021917,3]
[330568196,1719580244394,-810.32,0.00021917,3]
[330568197,1719580244404,-500.0,0.00021917,3]
[330568198,1719580244413,-200.0,0.00021917,3]
[330568199,1719580244423,-1008.85,0.00021917,3]
[330568200,1719580244432,-1421.84,0.00021917,3]
[330568201,1719580244441,-500.0,0.00021917,3]
[330568202,1719580244450,-1094.66,0.00021917,3]
[330568203,1719580244459,-1750.48,0.00021917,3]
[330568204,1719580244469,-500.0,0.00021917,3]
[330568205,1719580244479,-500.0,0.00021917,3]
[330568206,1719580244488,-1376.2,0.00021917,3]
[330568207,1719580244502,-296.65324434,0.00021917,3]
[330568208,1719580244511,-766.19,0.00021917,3]
[330568209,1719580244520,-500.0,0.00021917,3]
[330568210,1719580244529,-11000.62,0.00021917,3]
[330568211,1719580244539,-1499.66,0.00021917,3]
[330568212,1719580244548,-1417.25,0.00021917,3]
[330568213,1719580244557,-500.0,0.00021917,3]
[330568214,1719580244567,-570.24,0.00021917,3]
[330568215,1719580244576,-500.0,0.00021917,3]
[330568216,1719580244585,-500.0,0.00021917,3]
[330568217,1719580244596,-500.0,0.00021917,3]
[330568218,1719580244605,-500.0,0.00021917,3]
[330568219,1719580244615,-500.0,0.00021917,3]
[330568220,1719580244625,-500.0,0.00021917,3]
[330568221,1719580244634,-1058.26,0.00021917,3]
[330568222,1719580244643,-500.0,0.00021917,3]
[330568223,1719580244653,-933.52,0.00021917,3]
[330568224,1719580244662,-1383.09,0.00021917,3]
[330568225,1719580244672,-1209.26,0.00021917,3]
[330568226,1719580244682,-500.0,0.00021917,3]
[330568227,1719580244691,-6013.46,0.00021917,3]
[330568228,1719580244701,-2068.87,0.00021917,3]
[330568229,1719580244710,-500.0,0.00021917,3]
[330568230,1719580244720,-500.0,0.00021917,3]
[330568231,1719580244730,-620.4,0.00021917,3]
[330568232,1719580244739,-500.0,0.00021917,3]
[330568233,1719580244750,-500.0,0.00021917,3]
[330568234,1719580244759,-6273.91,0.00021917,3]
[330568235,1719580244769,-1427.36,0.00021917,3]
[330568236,1719580244778,-780.78,0.00021917,3]
[330568237,1719580244788,-500.0,0.00021917,3]
[330568238,1719580244798,-1195.08,0.00021917,3]
[330568239,1719580245110,-771.81,0.00021917,3]
[330568240,1719580245121,-584.09,0.00021917,3]
[330568241,1719580245131,-329.30634031,0.00021917,3]
[330568242,1719580245141,-1211.81,0.00021917,3]
[330568243,1719580245150,-1388.81,0.00021917,3]
[330568244,1719580245160,-500.0,0.00021917,3]
[330568245,1719580245170,-603.42,0.00021917,3]
[330568246,1719580245179,-719.32,0.00021917,3]
[330568247,1719580245189,-500.0,0.00021917,3]
[330568248,1719580245199,-500.0,0.00021917,3]
[330568249,1719580245208,-3175.51,0.00021917,3]
[330568250,1719580245218,-675.32,0.00021917,3]
[330568251,1719580245227,-802.56,0.00021917,3]
[330568252,1719580245237,-759.65,0.00021917,3]
[330568253,1719580245246,-500.0,0.00021917,3]
[330568254,1719580245257,-1223.12,0.00021917,3]
[330568255,1719580245268,-500.0,0.00021917,3]
[330568256,1719580245277,-1292.59,0.00021917,3]
[330568257,1719580245289,-1200.5,0.00021917,3]
[330568258,1719580245298,-500.0,0.00021917,3]
[330568259,1719580245308,-500.0,0.00021917,3]
[330568260,1719580245318,-500.0,0.00021917,3]
[330568261,1719580245327,-500.0,0.00021917,3]
[330568262,1719580245337,-787.36,0.00021917,3]
[330568263,1719580245347,-500.0,0.00021917,3]
[330568264,1719580245356,-500.0,0.00021917,3]
[330568265,1719580245366,-2261.49,0.00021917,3]
[330568266,1719580245376,-665.64,0.00021917,3]
[330568267,1719580245385,-500.0,0.00021917,3]
[330568268,1719580245395,-667.41,0.00021917,3]
[330568269,1719580245404,-500.0,0.00021917,3]
[330568270,1719580245414,-500.0,0.00021917,3]
[330568271,1719580245423,-711.29,0.00021917,3]
[330568272,1719580245433,-589.89,0.00021917,3]
[330568273,1719580245443,-1258.81,0.00021917,3]
[330568274,1719580245453,-1241.94,0.00021917,3]
[330568275,1719580245465,-578.25,0.00021917,3]
[330568276,1719580245475,-500.0,0.00021917,3]
[330568277,1719580245485,-500.0,0.00021917,2]
[330568278,1719580245494,-1625.89,0.00021917,3]
[330568279,1719580245506,-500.0,0.00021917,3]
[330568280,1719580245515,-1953.63,0.00021917,3]
[330568281,1719580245525,-754.98,0.00021917,3]
[330568282,1719580245534,-500.0,0.00021917,3]
[330568283,1719580245543,-500.0,0.00021917,3]
[330568284,1719580245553,-226.89681074,0.00021917,3]
[330568285,1719580245563,-500.0,0.00021917,3]
[330568286,1719580245573,-1177.6,0.00021917,3]
[330568287,1719580245583,-1247.3,0.00021917,3]
[330568288,1719580245593,-500.0,0.00021917,3]
[330568289,1719580245603,-1570.45,0.00021917,3]
[330568290,1719580245614,-500.0,0.00021917,3]
[330568291,1719580245624,-1092.42,0.00021917,3]
[330568292,1719580245633,-500.0,0.00021917,3]
[330568293,1719580245643,-500.0,0.00021917,3]
[330568294,1719580245653,-535.75030275,0.00021917,3]
[330568295,1719580245662,-1018.57,0.00021917,3]
[330568296,1719580245672,-500.0,0.00021917,3]
[330568297,1719580245681,-500.0,0.00021917,3]
[330568298,1719580245692,-500.0,0.00021917,3]
[330568299,1719580245702,-404.46754111,0.00021917,3]
[330568300,1719580245712,-500.0,0.00021917,3]
[330568301,1719580245722,-500.0,0.00021917,3]
[330568302,1719580245731,-1350.82,0.00021917,3]
[330568303,1719580245741,-985.8,0.00021917,3]
[330568304,1719580245752,-6775.69,0.00021917,3]
[330568305,1719580245762,-500.0,0.00021917,3]
[330568306,1719580245772,-2186.3,0.00021917,3]
[330568307,1719580245781,-500.0,0.00021917,3]
[330568308,1719580245791,-500.0,0.00021917,3]
[330568309,1719580245802,-500.0,0.00021917,3]
[330568310,1719580245812,-2026.05,0.00021917,3]
[330568311,1719580245823,-500.0,0.00021917,3]
[330568312,1719580245833,-500.0,0.00021917,3]
[330568313,1719580245843,-500.0,0.00021917,3]
[330568314,1719580245852,-763.33,0.00021917,3]
[330568315,1719580245862,-500.0,0.00021917,3]
[330568316,1719580245871,-7180.32,0.00021917,3]
[330568317,1719580245882,-673.81,0.00021917,3]
[330568318,1719580245892,-1420.61,0.00021917,3]
[330568319,1719580245902,-2333.0,0.00021917,3]
[330568320,1719580245911,-835.89,0.00021917,3]
[330568321,1719580245921,-1236.19,0.00021917,3]
[330568322,1719580245931,-186.39114813,0.00021917,3]
[330568323,1719580245940,-2371.07,0.00021917,3]
[330568324,1719580245950,-500.0,0.00021917,3]
[330568325,1719580245960,-1009.18,0.00021917,3]
[330568326,1719580245970,-500.0,0.00021917,3]
[330568327,1719580245979,-500.0,0.00021917,3]
[330568328,1719580245988,-500.0,0.00021917,3]
[330568329,1719580245998,-720.96,0.00021917,3]
[330568330,1719580246008,-500.0,0.00021917,3]
[330568331,1719580246017,-325.55541318,0.00021917,3]
[330568332,1719580246030,-500.0,0.00021917,3]
[330568333,1719580246040,-1268.43,0.00021917,3]
[330568334,1719580246049,-537.39,0.00021917,3]
[330568335,1719580246059,-500.0,0.00021917,3]
[330568336,1719580246070,-500.0,0.00021917,3]
[330568337,1719580246080,-961.04,0.00021917,3]
[330568338,1719580246089,-782.69,0.00021917,3]
[330568339,1719580246098,-500.0,0.00021917,3]
[330568340,1719580246108,-500.0,0.00021917,3]
[330568341,1719580246120,-897.45,0.00021917,3]
[330568342,1719580246130,-1312.47,0.00021917,3]
[330568343,1719580246140,-1240.9,0.00021917,3]
[330568344,1719580246149,-500.0,0.00021917,3]
[330568345,1719580246159,-1157.69,0.00021917,3]
[330568346,1719580246169,-500.0,0.00021917,3]
[330568347,1719580246178,-6695.05,0.00021917,3]
[330568348,1719580246188,-500.0,0.00021917,3]
[330568349,1719580246199,-500.0,0.00021917,3]
[330568350,1719580246209,-151.0,0.00021917,2]
[330568351,1719580246219,-500.0,0.00021917,3]
[330568352,1719580246230,-1431.81,0.00021917,3]
[330568353,1719580246240,-1225.35,0.00021917,3]
[330568354,1719580246252,-500.0,0.00021917,3]
[330568355,1719580246262,-500.0,0.00021917,3]
[330568356,1719580246272,-561.64,0.00021917,3]
[330568357,1719580246281,-500.0,0.00021917,3]
[330568358,1719580246291,-1050.11,0.00021917,3]
[330568359,1719580246301,-1200.19,0.00021917,3]
[330568360,1719580246310,-539.85,0.00021917,3]
[330568361,1719580246320,-500.0,0.00021917,3]
[330568362,1719580246329,-500.0,0.00021917,3]
[330568363,1719580246339,-500.0,0.00021917,3]
[330568364,1719580246349,-500.0,0.00021917,3]
[330568365,1719580246359,-1557.93,0.00021917,3]
[330568366,1719580246368,-1912.82,0.00021917,3]
[330568367,1719580246378,-500.0,0.00021917,3]
[330568368,1719580246387,-500.0,0.00021917,3]
[330568369,1719580246397,-500.0,0.00021917,3]
[330568370,1719580246406,-686.38,0.00021917,3]
[330568371,1719580246415,-500.0,0.00021917,3]
[330568372,1719580246425,-1026.41,0.00021917,3]
[330568373,1719580246435,-500.0,0.00021917,3]
[330568374,1719580246444,-879.77,0.00021917,3]
[330568375,1719580246454,-2700.84,0.00021917,3]
[330568376,1719580246463,-500.0,0.00021917,3]
[330568377,1719580246473,-500.0,0.00021917,3]
[330568378,1719580246482,-500.0,0.00021917,3]
[330568379,1719580246492,-500.0,0.00021917,3]
[330568380,1719580246503,-869.95,0.00021917,3]
[330568383,1719580246512,-500.0,0.00021917,3]
[330568386,1719580246521,-500.0,0.00021917,3]
[330568388,1719580246531,-500.0,0.00021917,3]
[330568390,1719580246540,-1199.12,0.00021917,3]
[330568392,1719580246550,-1837.86,0.00021917,3]
[330568394,1719580246559,-500.0,0.00021917,3]
[330568396,1719580246568,-894.46,0.00021917,3]
[330568397,1719580246578,-2333.08,0.00021917,3]
[330568398,1719580246587,-8521.42,0.00021917,3]
[330568399,1719580246597,-500.0,0.00021917,3]
[330568400,1719580246607,-500.0,0.00021917,3]
[330568401,1719580246617,-1245.38,0.00021917,3]
[330568402,1719580246628,-1942.97,0.00021917,3]
[330568403,1719580246638,-500.0,0.00021917,3]
[330568404,1719580246648,-1135.97,0.00021917,3]
[330568405,1719580246658,-1041.98,0.00021917,3]
[330568406,1719580246668,-3839.5,0.00021917,3]
[330568407,1719580246678,-782.26,0.00021917,3]
[330568408,1719580246688,-644.87,0.00021917,3]
[330568409,1719580246698,-500.0,0.00021917,3]
[330568410,1719580246708,-500.0,0.00021917,3]
[330568411,1719580246719,-151.0,0.00021917,2]
[330568412,1719580246729,-500.0,0.00021917,3]
[330568413,1719580246738,-151.0,0.00021917,2]
[330568414,1719580246748,-151.0,0.00021917,2]
[330568415,1719580246758,-500.0,0.00021917,3]
[330568416,1719580246769,-151.0,0.00021917,2]
[330568417,1719580246779,-250.118792,0.00021917,2]
[330568418,1719580246788,-1365.08,0.00021917,3]
[330568419,1719580246798,-589.93,0.00021917,3]
[330568420,1719580246809,-1860.78,0.00021917,3]
[330568421,1719580246819,-500.0,0.00021917,3]
[330568422,1719580246831,-612.08601322,0.00021917,3]
[330568423,1719580246844,-569.65,0.00021917,3]
[330568424,1719580246854,-580.83,0.00021917,3]
[330568425,1719580246864,-4768.32,0.00021917,3]
[330568426,1719580246874,-500.0,0.00021917,3]
[330568427,1719580246885,-1639.62,0.00021917,3]
[330568428,1719580246895,-500.0,0.00021917,3]
[330568429,1719580246905,-500.0,0.00021917,3]
[330568430,1719580246914,-1256.47,0.00021917,3]
[330568431,1719580246924,-500.0,0.00021917,3]
[330568432,1719580246934,-1616.01,0.00021917,3]
[330568433,1719580246943,-1549.08,0.00021917,3]
[330568434,1719580246953,-500.0,0.00021917,3]
[330568435,1719580246962,-770.54,0.00021917,3]
[330568436,1719580246972,-2386.79,0.00021917,3]
[330568437,1719580246982,-902.0,0.00021917,3]
[330568438,1719580246992,-500.0,0.00021917,3]
[330568439,1719580247003,-553.8,0.00021917,3]
[330568440,1719580247013,-637.45,0.00021917,3]
[330568441,1719580247024,-500.0,0.00021917,3]
[330568442,1719580247034,-500.0,0.00021917,3]
[330568443,1719580247047,-2697.51,0.00021917,3]
[330568444,1719580247058,-1760.97,0.00021917,3]
[330568445,1719580247068,-500.0,0.00021917,3]
[330568446,1719580247079,-820.41,0.00021917,3]
[330568447,1719580247089,-500.0,0.00021917,3]
[330568448,1719580247098,-1394.15,0.00021917,3]
[330568449,1719580247108,-5716.65,0.00021917,3]
[330568450,1719580247121,-500.0,0.00021917,3]
[330568451,1719580247132,-582.46,0.00021917,3]
[330568452,1719580247142,-632.7,0.00021917,3]
[330568453,1719580247152,-500.0,0.00021917,3]
[330568454,1719580247162,-1667.1,0.00021917,3]
[330568455,1719580247171,-2249.97,0.00021917,3]
[330568456,1719580247181,-500.0,0.00021917,3]
[330568457,1719580247191,-500.0,0.00021917,3]
[330568458,1719580247201,-500.0,0.00021917,3]
[330568459,1719580247212,-1029.87,0.00021917,3]
[330568460,1719580247222,-500.0,0.00021917,3]
[330568461,1719580247232,-500.0,0.00021917,3]
[330568462,1719580247242,-1162.55,0.00021917,3]
[330568463,1719580247253,-2205.11,0.00021917,3]
[330568464,1719580247263,-500.0,0.00021917,3]
[330568465,1719580247272,-500.0,0.00021917,3]
[330568466,1719580247282,-74.16183423,0.00021917,3]
[330568467,1719580248323,-282.99193758,0.00021917,3]
[330568468,1719580249298,-1154.46598924,0.00017252,2]
[330568469,1719580249308,-1603.87622819,0.00021917,3]
[330568470,1719580249318,-500.0,0.00021917,3]
[330568471,1719580249327,-500.0,0.00021917,3]
[330568472,1719580249337,-500.0,0.00021917,3]
[330568473,1719580249347,-500.0,0.00021917,3]
[330568474,1719580249356,-500.0,0.00021917,3]
[330568475,1719580249366,-500.0,0.00021917,3]
[330568476,1719580249376,-151.0,0.00021917,2]
[330568477,1719580249386,-151.0,0.00021917,2]
[330568478,1719580249395,-1032.59,0.00021917,3]
[330568479,1719580249406,-151.0,0.00021917,2]
[330568480,1719580249416,-500.0,0.00021917,3]
[330568481,1719580249429,-1103.58,0.00021917,3]
[330568482,1719580249438,-151.0,0.00021917,2]
[330568483,1719580249448,-500.0,0.00021917,3]
[330568484,1719580249457,-500.0,0.00021917,3]
[330568485,1719580249467,-151.0,0.00021917,2]
[330568486,1719580249476,-151.0,0.00021917,2]
[330568487,1719580249486,-151.0,0.00021917,2]
[330568488,1719580249496,-151.0,0.00021917,2]
[330568489,1719580249506,-151.0,0.00021917,2]
[330568490,1719580249516,-500.0,0.00021917,3]
[330568491,1719580249525,-151.0,0.00021917,2]
[330568492,1719580249534,-500.0,0.00021917,3]
[330568493,1719580249544,-1073.58,0.00021917,3]
[330568494,1719580249553,-500.0,0.00021917,3]
[330568495,1719580249563,-515.39,0.00021917,3]
[330568496,1719580249572,-607.16596986,0.00021917,3]
[330568497,1719580249582,-500.0,0.00021917,3]
[330568498,1719580249593,-1632.93,0.00021917,3]
[330568499,1719580249602,-500.0,0.00021917,3]
[330568500,1719580249612,-500.0,0.00021917,3]
[330568501,1719580249624,-1463.59,0.00021917,3]
[330568502,1719580249634,-706.24,0.00021917,3]
[330568503,1719580249643,-776.61,0.00021917,3]
[330568504,1719580249652,-3950.64,0.00021917,3]
[330568505,1719580249661,-502.12,0.00021917,3]
[330568506,1719580249671,-500.0,0.00021917,3]
[330568507,1719580249680,-2593.43,0.00021917,3]
[330568508,1719580249689,-501.77133583,0.00021917,3]
[330568509,1719580249699,-500.0,0.00021917,3]
[330568510,1719580249709,-500.0,0.00021917,3]
[330568511,1719580249718,-614.82486348,0.00021917,3]
[330568512,1719580249728,-645.19,0.00021917,3]
[330568513,1719580249737,-500.0,0.00021917,3]
[330568514,1719580249747,-1037.9,0.00021917,3]
[330568515,1719580249758,-827.72,0.00021917,3]
[330568516,1719580249767,-701.13,0.00021917,3]
[330568517,1719580249777,-500.0,0.00021917,3]
[330568518,1719580249787,-2811.62,0.00021917,3]
[330568519,1719580249796,-500.0,0.00021917,3]
[330568520,1719580249805,-2745.73,0.00021917,3]
[330568521,1719580249814,-500.0,0.00021917,3]
[330568522,1719580249823,-500.0,0.00021917,3]
[330568523,1719580249833,-500.0,0.00021917,3]
[330568524,1719580249842,-856.96,0.00021917,3]
[330568525,1719580249851,-500.0,0.00021917,3]
[330568526,1719580249860,-885.95,0.00021917,3]
[330568527,1719580249869,-500.0,0.00021917,3]
[330568528,1719580249878,-500.0,0.00021917,3]
[330568529,1719580249888,-636.31,0.00021917,3]
[330568530,1719580249897,-500.0,0.00021917,3]
[330568531,1719580249907,-500.0,0.00021917,3]
[330568532,1719580249916,-500.0,0.00021917,3]
[330568533,1719580249925,-500.0,0.00021917,3]
[330568534,1719580249934,-816.37,0.00021917,3]
[330568535,1719580249943,-1343.82,0.00021917,3]
[330568536,1719580249955,-151.0,0.00021917,2]
[330568537,1719580249964,-151.0,0.00021917,2]
[330568538,1719580249973,-151.0,0.00021917,2]
[330568539,1719580249982,-151.0,0.00021917,2]
[330568540,1719580249992,-151.0,0.00021917,2]
[330568541,1719580250001,-151.0,0.00021917,2]
[330568542,1719580250013,-500.0,0.00021917,3]
[330568543,1719580250022,-657.92,0.00021917,3]
[330568544,1719580250033,-151.0,0.00021917,2]
[330568545,1719580250047,-561.9,0.00021917,3]
[330568546,1719580250057,-1521.7,0.00021917,3]
[330568547,1719580250066,-500.0,0.00021917,3]
[330568548,1719580250075,-500.0,0.00021917,3]
[330568549,1719580250084,-500.0,0.00021917,3]
[330568550,1719580250093,-1718.97,0.00021917,3]
[330568551,1719580250103,-992.45,0.00021917,3]
[330568552,1719580250112,-151.0,0.00021917,2]
[330568553,1719580250123,-151.0,0.00021917,2]
[330568554,1719580250134,-151.0,0.00021917,2]
[330568555,1719580250143,-151.0,0.00021917,2]
[330568556,1719580250152,-500.0,0.00021917,3]
[330568557,1719580250161,-500.0,0.00021917,3]
[330568558,1719580250171,-1457.54,0.00021917,3]
[330568559,1719580250180,-787.38,0.00021917,3]
[330568560,1719580250189,-500.0,0.00021917,3]
[330568561,1719580250198,-2570.38,0.00021917,3]
[330568562,1719580250208,-500.0,0.00021917,3]
[330568563,1719580250217,-500.0,0.00021917,3]
[330568564,1719580250227,-568.16,0.00021917,3]
[330568565,1719580250235,-500.0,0.00021917,3]
[330568566,1719580250246,-1066.11,0.00021917,3]
[330568567,1719580250256,-500.0,0.00021917,3]
[330568568,1719580250265,-848.61,0.00021917,3]
[330568569,1719580250274,-1284.92,0.00021917,3]
[330568570,1719580250282,-500.0,0.00021917,3]
[330568571,1719580250291,-500.0,0.00021917,3]
[330568572,1719580250301,-955.11,0.00021917,3]
[330568573,1719580250310,-500.0,0.00021917,3]
[330568574,1719580250320,-4178.8,0.00021917,3]
[330568575,1719580250329,-500.0,0.00021917,3]
[330568576,1719580250339,-500.0,0.00021917,3]
[330568577,1719580250348,-1916.94,0.00021917,3]
[330568578,1719580250357,-548.37,0.00021917,3]
[330568579,1719580250366,-894.5,0.00021917,3]
[330568580,1719580250376,-500.0,0.00021917,3]
[330568581,1719580250385,-500.0,0.00021917,3]
[330568582,1719580250394,-926.8,0.00021917,3]
[330568583,1719580250404,-2368.22,0.00021917,3]
[330568584,1719580250413,-1155.55,0.00021917,3]
[330568585,1719580250423,-500.0,0.00021917,3]